bitfinex/quotes_ETHUSD_20250801
["timestamp","ask_amount","ask_price","bid_price","bid_amount"]
[1754033970257,1.1465,3634.1,3632.9,0.02752621]
[1754033970401,1.37206,3634.9,3633.0,3.0]
[1754033970603,0.55,3634.7,3633.2,3.0]
[1754033970824,0.55,3634.5,3633.3,2.75230616]
[1754033971011,0.55,3634.5,3633.6,3.0]
[1754033971012,0.55,3634.3,3633.6,3.0]
[1754033971227,0.4591,3634.4,3633.6,0.02752091]
[1754033971408,0.4591,3634.4,3633.6,3.0]
[1754033971944,0.4591,3634.4,3633.8,3.0]
[1754033972253,1.1465,3634.6,3633.9,2.75179297]
[1754033972538,0.4591,3634.8,3634.3,3.0]
[1754033972744,2.02183295,3634.8,3634.3,3.0]
[1754033972926,0.1376,3634.4,3634.1,3.0]
[1754033973446,0.1376,3634.2,3634.1,2.75171294]
[1754033974120,0.4591,3634.2,3633.8,2.75192316]
[1754033974304,0.4591,3634.5,3633.9,3.0]
[1754033974505,0.66128329,3634.5,3634.0,3.0]
[1754033974702,0.4591,3634.4,3633.5,2.75215261]
[1754033974945,0.55,3634.3,3632.8,3.002]
[1754033975154,0.4591,3634.2,3632.8,0.002]
[1754033975650,0.4591,3634.2,3633.5,3.0]
[1754033975951,0.55,3634.1,3633.0,5.75253826]
[1754033976154,0.4591,3634.0,3632.9,5.75262187]
[1754033976355,0.4591,3634.0,3632.9,2.7526131]
[1754033976576,0.4591,3634.0,3633.2,3.0]
[1754033977040,0.4591,3634.0,3632.9,5.75256959]
[1754033977239,0.4591,3634.0,3632.9,2.75256959]
[1754033977557,0.4591,3634.0,3632.8,0.002]
[1754033978182,0.55,3633.9,3633.0,3.0]
[1754033978326,0.4591,3633.8,3632.8,0.002]
[1754033978531,0.4591,3634.2,3633.5,3.0]
[1754033978750,0.4591,3634.2,3633.5,2.7521576]
[1754033978947,0.20218329,3634.5,3633.7,2.7519573]
[1754033979154,0.20218329,3634.5,3633.8,2.77945266]
[1754033979631,0.4591,3634.7,3634.1,3.0]
[1754033979860,0.4591,3635.2,3633.9,2.75185646]
[1754033980041,0.4591,3635.2,3634.2,3.0]
[1754033980362,0.4591,3635.2,3634.4,5.75147711]
[1754033980561,0.4591,3635.2,3634.6,3.0]
[1754033980766,0.4591,3635.2,3634.0,0.2808]
[1754033980960,1.1465,3635.4,3634.0,0.2808]
[1754033981268,1.1465,3635.4,3634.0,3.2808]
[1754033981471,4.66794235,3635.6,3634.9,3.0]
[1754033981766,4.66794235,3635.6,3634.9,5.75110732]
[1754033982430,4.66794235,3635.6,3634.9,3.0]
[1754033982833,0.4591,3635.4,3634.9,3.0]
[1754033983824,4.66794235,3635.6,3634.9,3.0]
[1754033983825,20.4591,3635.0,3634.9,3.0]
[1754033984034,22.64261,3635.0,3634.9,3.0]
[1754033984230,22.64261,3635.0,3634.3,2.75155608]
[1754033984466,0.1376,3634.3,3634.2,3.0]
[1754033984667,0.1376,3634.3,3634.0,2.75174008]
[1754033984969,0.1376,3634.3,3634.1,2.7516572]
[1754033985278,0.1376,3634.3,3634.1,2.75165478]
[1754033985580,0.1376,3634.3,3634.2,5.75163722]
[1754033985762,0.1376,3634.3,3634.2,3.0]
[1754033985964,0.1376,3634.3,3634.2,5.75163722]
[1754033986535,0.1376,3634.3,3634.2,3.0]
[1754033986846,0.1376,3634.3,3634.2,5.75163722]
[1754033987574,0.1376,3634.3,3634.2,3.0]
[1754033987877,1.6438,3634.3,3634.2,3.0]
[1754033988084,1.80818,3634.3,3633.7,0.1376]
[1754033988370,0.4712,3634.2,3633.6,3.0]
[1754033988562,0.1376,3633.7,3633.6,3.0]
[1754033988762,0.1376,3633.7,3632.6,2.75282793]
[1754033988959,0.1376,3633.7,3633.1,0.1376]
[1754033989173,0.1376,3633.7,3633.3,2.75224999]
[1754033989340,0.1376,3633.7,3633.4,5.75223173]
[1754033989739,1.085,3633.6,3632.8,0.002]
[1754033989962,0.1376,3632.9,3632.8,0.002]
[1754033993444,1.2226,3632.9,3632.8,0.002]
[1754033993786,1.6938,3632.9,3632.8,0.002]
[1754033994540,1.2226,3632.9,3632.8,0.002]
[1754033994769,0.1376,3632.9,3632.8,0.002]
[1754033995378,0.6088,3632.9,3632.8,0.002]
[1754033996353,0.1376,3632.9,3632.8,0.002]
[1754033997095,0.1376,3632.9,3632.8,3.002]
[1754033997464,0.1376,3632.9,3632.8,5.75469764]
[1754033998347,0.1376,3632.9,3632.8,3.002]
[1754033998546,0.1376,3632.9,3632.8,0.002]
[1754033999383,0.1376,3632.9,3632.8,2.75469764]
[1754033999758,0.1376,3632.9,3632.8,3.002]
[1754034000586,0.1376,3632.9,3632.8,5.75469764]
[1754034001350,0.4712,3633.5,3632.9,3.0]
[1754034001558,4.66794235,3634.5,3633.1,2.75247034]
[1754034001559,0.1376,3633.2,3633.1,2.75247034]
[1754034001879,0.1376,3633.2,3632.8,0.002]
[1754034001880,0.1376,3633.0,3632.8,0.002]
[1754034002385,0.1376,3633.0,3632.8,5.75469764]
[1754034002592,0.1376,3633.0,3632.8,2.75464708]
[1754034002793,0.1376,3633.0,3632.9,3.0]
[1754034003091,0.1376,3633.0,3632.9,5.75262187]
[1754034004061,0.1376,3633.0,3632.9,3.0]
[1754034004251,1.085,3633.7,3633.2,2.75236489]
[1754034004575,0.1376,3633.6,3633.5,2.75211791]
[1754034004780,0.1376,3633.7,3633.6,2.75207843]
[1754034004993,0.4712,3633.7,3633.4,3.0]
[1754034005292,0.1376,3633.4,3633.3,5.75231882]
[1754034005493,1.5562,3634.3,3633.4,3.0]
[1754034005792,0.4712,3634.3,3633.5,0.02752167]
[1754034005989,0.4712,3634.3,3633.3,0.4331]
[1754034006191,0.4712,3634.3,3633.2,0.1376]
[1754034006192,1.5562,3634.3,3633.2,0.1376]
[1754034006506,1.5562,3634.3,3633.9,3.0]
[1754034006654,1.5562,3634.3,3632.9,0.4331]
[1754034006655,0.4712,3634.7,3634.0,0.02751788]
[1754034006858,20.0,3635.0,3634.1,0.02751712]
[1754034007198,0.1376,3634.9,3634.8,2.751183]
[1754034007897,0.1376,3634.9,3634.8,5.751183]
[1754034008281,0.1376,3634.9,3634.8,5.95666669]
[1754034008577,0.1376,3634.9,3634.8,3.20548369]
[1754034008775,20.0,3635.0,3634.8,3.20548369]
[1754034008776,18.31629232,3635.0,3634.9,5.75110732]
[1754034008982,18.31629232,3635.0,3634.9,6.18420732]
[1754034009766,0.1376,3635.9,3634.9,6.18420732]
[1754034009767,0.1376,3635.9,3635.8,5.75042631]
[1754034009989,0.4712,3636.5,3635.8,3.0]
[1754034010249,0.001,3636.6,3636.4,5.74994384]
[1754034010407,0.001,3636.6,3636.5,5.74989687]
[1754034010983,0.001,3636.6,3636.5,6.28359382]
[1754034011194,0.001,3636.6,3636.5,6.42119382]
[1754034011866,0.001,3636.6,3636.5,5.88749687]
[1754034013209,0.001,3636.6,3636.5,3.0]
[1754034013410,0.4722,3636.6,3636.5,3.0]
[1754034013777,1.5572,3636.6,3635.0,0.4331]
[1754034014007,1.5572,3636.6,3635.8,2.75036174]
[1754034014008,0.1376,3636.3,3635.8,2.75036174]
[1754034014316,0.1376,3636.3,3636.0,3.0]
[1754034014502,1.5562,3636.2,3635.7,0.1376]
[1754034014696,0.4712,3636.1,3635.7,0.1376]
[1754034015009,0.1376,3635.8,3634.5,2.75136551]
[1754034015182,1.5562,3636.0,3633.7,2.75196677]
[1754034015183,0.4712,3635.7,3635.5,3.0]
[1754034015383,0.1376,3635.7,3635.5,3.0]
[1754034015682,0.1376,3635.7,3635.6,5.77808339]
[1754034015885,0.1376,3635.9,3635.7,3.0]
[1754034016203,0.1376,3635.9,3635.7,2.75043764]
[1754034016586,0.1376,3635.9,3635.8,3.0]
[1754034016784,0.1376,3635.9,3635.7,3.0]
[1754034016785,0.6017,3635.9,3635.7,3.0]
[1754034016988,0.6017,3635.9,3635.7,2.75048238]
[1754034017189,0.6017,3635.9,3635.7,3.0]
[1754034017483,1.6073,3635.8,3634.9,2.75110732]
[1754034017684,0.1376,3635.7,3634.9,0.1376]
[1754034017902,0.1376,3635.7,3634.2,0.4331]
[1754034017903,0.1376,3635.1,3633.9,0.4331]
[1754034018082,0.1376,3635.1,3635.0,3.0]
[1754034018283,0.1376,3635.1,3634.8,2.75112421]
[1754034018582,0.1376,3635.1,3634.7,2.75125597]
[1754034018583,0.4641,3635.6,3635.0,3.0]
[1754034018914,0.178179,3635.5,3634.9,2.75107671]
[1754034019133,0.178179,3635.5,3635.0,3.0]
[1754034019336,0.1376,3635.0,3634.8,0.20143377]
[1754034019481,0.1376,3635.0,3634.9,5.75110732]
[1754034019841,0.1376,3635.0,3633.4,2.75224307]
[1754034019842,0.55,3634.9,3633.4,2.75224307]
[1754034020135,0.55,3634.7,3632.4,0.4351]
[1754034020333,0.55,3634.7,3633.3,2.75227643]
[1754034020535,0.55,3634.5,3632.9,2.75254879]
[1754034020681,0.55,3634.5,3632.8,0.20438393]
[1754034020682,0.55,3634.5,3633.2,5.75238088]
[1754034020886,0.55,3634.5,3632.8,0.20438393]
[1754034020887,0.55,3634.3,3633.1,3.0]
[1754034021083,0.4641,3634.2,3633.4,3.0]
[1754034021614,0.4641,3634.2,3633.3,2.75231744]
[1754034021784,0.4641,3634.2,3633.3,2.75225976]
[1754034021991,0.4641,3634.2,3633.5,2.75211146]
[1754034022317,0.4641,3634.2,3633.6,2.75205588]
[1754034022823,0.4641,3634.2,3633.5,2.75214365]
[1754034023030,0.4641,3634.2,3633.2,0.3]
[1754034023224,0.55,3634.1,3632.8,0.20514818]
[1754034023424,0.55,3633.9,3632.8,0.002]
[1754034023949,1.6073,3633.8,3632.8,0.002]
[1754034024088,0.55,3633.7,3632.8,0.002]
[1754034024289,2.1573,3633.7,3632.8,0.002]
[1754034024632,0.55,3633.5,3632.8,0.002]
[1754034024987,0.55,3633.3,3632.8,0.002]
[1754034025425,0.55,3633.1,3632.8,0.002]
[1754034025811,0.55,3633.1,3632.5,0.002]
[1754034025812,0.55,3632.9,3632.5,0.002]
[1754034026016,0.55,3632.9,3632.4,0.002]
[1754034026234,0.55,3633.0,3632.4,0.002]
[1754034026414,0.55,3632.7,3632.4,0.002]
[1754034026592,0.21573,3632.6,3632.4,0.002]
[1754034026798,1.82303,3632.6,3632.4,0.002]
[1754034026994,1.6073,3632.5,3632.4,0.002]
[1754034027193,2.1573,3632.5,3632.4,0.002]
[1754034028227,1.6073,3632.5,3632.4,0.002]
[1754034029736,2.1573,3632.5,3632.4,0.002]
[1754034030046,2.2949,3632.5,3632.4,0.002]
[1754034030212,2.52439,3632.5,3632.4,0.002]
[1754034032395,5.27731498,3632.5,3632.4,0.002]
[1754034032598,2.52439,3632.5,3632.4,0.002]
[1754034032835,2.52439,3632.5,3632.1,0.02]
[1754034032836,3.30315235,3632.2,3632.1,0.02]
[1754034033042,3.44075235,3632.2,3632.1,0.02]
[1754034033242,5.99510757,3632.2,3632.1,0.02]
[1754034033664,3.24195522,3632.2,3632.1,0.02]
[1754034033842,2.2949,3632.2,3632.1,0.02]
[1754034035166,5.04805235,3632.2,3632.1,0.02]
[1754034035476,2.2949,3632.2,3632.1,0.02]
[1754034035789,2.2949,3632.2,3632.1,0.022]
[1754034036647,2.2949,3632.2,3630.0,0.1]
[1754034036648,3.55,3632.1,3630.0,0.1]
[1754034036978,0.55,3630.9,3630.0,0.1]
[1754034037132,0.6876,3630.1,3630.0,0.1]
[1754034037335,2.2949,3630.1,3630.0,0.1]
[1754034040173,0.1376,3630.1,3630.0,0.1]
[1754034040402,1.6073,3631.1,3630.0,0.1]
[1754034040601,1.76803,3631.1,3630.0,0.1]
[1754034040901,0.16073,3631.1,3630.2,2.75465543]
[1754034041200,0.4641,3631.5,3630.0,0.5351]
[1754034041406,0.827895,3632.2,3630.6,2.75429711]
[1754034041577,0.4641,3632.1,3630.6,0.4351]
[1754034041777,0.4641,3632.1,3630.9,2.75413555]
[1754034041980,0.4641,3632.1,3630.1,0.2626]
[1754034041981,1.1442,3632.4,3630.1,0.29014745]
[1754034042192,1.1442,3632.4,3631.0,3.4351]
[1754034042368,1.1442,3632.4,3631.0,6.18914627]
[1754034042767,1.1442,3632.4,3631.2,3.0]
[1754034043204,1.1442,3632.4,3631.3,2.75378036]
[1754034043406,1.1442,3632.4,3631.1,3.0]
[1754034043607,0.001,3632.4,3631.0,0.4351]
[1754034043913,0.001,3632.4,3631.6,3.0]
[1754034044118,0.001,3632.4,3631.8,3.0]
[1754034044624,0.001,3632.4,3632.3,5.75307656]
[1754034045011,0.001,3632.4,3632.3,6.18817656]
[1754034045215,1.1432,3634.7,3633.4,2.752216]
[1754034045524,0.4641,3635.1,3633.5,0.4331]
[1754034045681,1.1432,3634.8,3633.5,3.4331]
[1754034046023,1.1432,3634.8,3633.5,0.4331]
[1754034047224,1.1432,3634.8,3633.8,3.0]
[1754034047521,1.1432,3634.8,3633.5,0.4331]
[1754034047912,1.1432,3634.8,3633.7,3.0]
[1754034048113,0.55,3634.7,3633.6,3.0]
[1754034048288,1.1432,3634.8,3633.5,3.18526639]
[1754034048289,0.55,3634.5,3633.5,3.4331]
[1754034048824,0.55,3634.5,3633.5,0.4331]
[1754034049125,0.55,3634.5,3633.7,3.0]
[1754034049300,0.55,3635.1,3633.5,0.4331]
[1754034049698,1.5406,3635.0,3633.5,0.4331]
[1754034049926,0.55,3634.8,3633.5,3.4331]
[1754034050289,0.1376,3633.7,3633.5,0.4331]
[1754034050484,0.1376,3633.7,3633.6,0.4331]
[1754034050741,0.1376,3633.7,3633.2,3.0]
[1754034050951,0.1376,3633.7,3633.5,3.0]
[1754034051089,0.1376,3633.7,3633.6,0.4331]
[1754034051408,0.1376,3633.7,3633.4,2.75223813]
[1754034051629,0.1376,3633.7,3633.2,6.32308592]
[1754034051936,0.1376,3633.7,3633.3,0.4331]
[1754034052287,0.1376,3633.7,3633.3,3.18540403]
[1754034052494,0.1376,3633.7,3633.4,0.4331]
[1754034053314,0.1376,3633.7,3633.3,2.75231176]
[1754034053514,0.1376,3633.7,3633.2,0.1376]
[1754034053714,0.1376,3633.7,3633.4,3.0]
[1754034054037,0.1376,3633.7,3633.2,0.1376]
[1754034054590,0.55,3634.1,3633.1,3.0]
[1754034054823,0.1376,3633.3,3633.2,2.75239458]
[1754034055023,0.1376,3633.3,3632.9,6.39220961]
[1754034055188,0.1376,3633.3,3633.2,5.75239458]
[1754034055391,0.1376,3633.6,3633.5,5.75216733]
[1754034055628,0.1376,3633.6,3633.5,3.18526733]
[1754034055835,0.1376,3634.0,3633.6,2.75209158]
[1754034055994,0.1376,3634.0,3633.9,5.75186438]
[1754034056326,0.1376,3634.0,3633.9,6.18496438]
[1754034057125,1.5406,3635.6,3634.0,3.0]
[1754034057330,1.5406,3635.6,3634.1,0.46061712]
[1754034057493,0.1376,3634.8,3634.7,5.7512587]
[1754034057690,0.1376,3634.8,3634.7,3.4331]
[1754034058019,0.1376,3634.8,3634.7,3.0]
[1754034058350,0.1386,3634.8,3634.7,3.0]
[1754034058642,1.6792,3634.8,3633.7,2.75194898]
[1754034058806,0.16792,3634.7,3633.2,0.4331]
[1754034059006,0.16792,3634.7,3633.4,3.0]
[1754034059007,0.1376,3634.0,3633.4,3.0]
[1754034059322,0.1376,3633.5,3633.0,0.1376]
[1754034059495,1.1031,3634.2,3632.8,2.75464617]
[1754034059496,0.4375,3633.8,3632.8,0.1396]
[1754034059692,0.4375,3633.8,3632.8,0.002]
[1754034059693,0.1376,3633.0,3632.8,0.002]
[1754034060418,1.1031,3632.9,3632.8,0.002]
[1754034060634,1.5406,3632.9,3632.8,0.002]
[1754034060855,0.1376,3633.0,3632.8,0.002]
[1754034061596,1.5406,3632.9,3632.8,0.002]
[1754034061947,1.70842,3632.9,3632.8,0.002]
[1754034062130,0.16782,3632.9,3632.8,0.002]
[1754034062445,1.5406,3632.9,3632.8,0.002]
[1754034062596,0.1376,3633.0,3632.8,0.002]
[1754034063055,1.6782,3633.0,3632.8,0.002]
[1754034063455,0.5751,3633.0,3632.8,0.002]
[1754034063600,1.1031,3632.9,3632.8,0.002]
[1754034063810,1.27092,3632.9,3632.8,0.002]
[1754034064608,1.70842,3632.9,3632.8,0.002]
[1754034065249,0.1376,3633.0,3632.8,0.002]
[1754034065732,0.1376,3633.0,3632.8,3.002]
[1754034065914,0.1376,3633.0,3632.8,2.75468307]
[1754034066110,0.1376,3633.2,3632.9,3.0]
[1754034066695,0.1376,3633.2,3633.1,3.0]
[1754034067714,1.1031,3634.2,3633.2,3.0]
[1754034068035,0.1376,3633.5,3633.4,3.0]
[1754034068210,0.1376,3633.5,3633.3,3.0]
[1754034068623,0.1376,3633.5,3633.1,3.0]
[1754034068823,0.1376,3633.5,3633.1,2.75246696]
[1754034069024,0.1376,3633.5,3632.8,0.002]
[1754034069025,1.1031,3633.4,3632.8,0.002]
[1754034069228,0.1376,3632.9,3632.8,0.002]
[1754034069826,0.55,3633.3,3632.8,0.002]
[1754034070028,1.2407,3632.9,3632.8,0.002]
[1754034070333,1.6782,3632.9,3632.8,0.002]
[1754034070641,0.1376,3632.9,3632.8,0.002]
[1754034071938,1.1031,3633.8,3633.0,3.0]
[1754034072238,0.1376,3633.0,3632.8,0.002]
[1754034072602,0.1376,3633.0,3632.9,2.75262187]
[1754034072807,1.1031,3633.8,3632.8,0.002]
[1754034073049,0.4375,3633.7,3632.8,0.002]
[1754034073248,0.1376,3633.0,3632.8,0.002]
[1754034074130,0.1376,3633.0,3632.9,5.75262187]
[1754034074305,0.1376,3633.0,3632.9,3.0]
[1754034075203,1.1031,3633.5,3633.0,3.0]
[1754034075403,0.55,3634.1,3632.8,3.002]
[1754034075404,0.1376,3633.2,3632.8,3.002]
[1754034075719,0.1376,3633.2,3632.8,2.75468167]
[1754034076447,0.1376,3633.2,3632.8,3.002]
[1754034077152,0.1376,3633.2,3633.0,3.0]
[1754034077842,0.1376,3633.2,3632.8,3.002]
[1754034078039,0.1376,3633.2,3632.8,0.002]
[1754034078242,0.1376,3633.2,3632.8,3.002]
[1754034078552,1.4945,3633.1,3632.8,0.002]
[1754034078760,0.16321,3633.0,3632.8,0.002]
[1754034079053,0.1376,3632.9,3632.8,0.002]
[1754034079421,0.5809,3632.9,3632.8,0.002]
[1754034079620,1.6321,3632.9,3632.8,0.002]
[1754034080343,0.1376,3632.9,3632.8,0.002]
[1754034081018,1.6321,3632.9,3632.8,0.002]
[1754034081345,1.35211,3632.9,3632.8,0.002]
[1754034081503,0.1376,3632.9,3632.8,0.002]
[1754034083647,0.001,3633.2,3632.8,0.002]
[1754034083648,0.1376,3633.0,3632.9,3.0]
[1754034083829,0.001,3633.2,3633.1,3.0]
[1754034083830,0.1386,3633.2,3633.1,3.0]
[1754034084034,0.1386,3633.2,3633.1,2.75247034]
[1754034084216,0.001,3633.2,3633.1,2.75247034]
[1754034084415,0.001,3633.2,3633.1,3.18557034]
[1754034084620,0.001,3633.2,3633.1,3.40229504]
[1754034085023,0.001,3633.2,3633.1,3.37477034]
[1754034085220,0.001,3633.2,3633.1,3.51237034]
[1754034085543,0.001,3633.2,3633.1,2.89007034]
[1754034087113,0.001,3633.2,3633.1,3.32317034]
[1754034087522,0.001,3633.2,3633.1,0.1376]
[1754034087760,1.0522,3633.2,3632.8,0.002]
[1754034088047,0.4443,3633.2,3632.8,2.89229113]
[1754034088210,1.0512,3633.1,3632.8,0.002]
[1754034088407,1.4945,3633.1,3632.8,0.002]
[1754034088607,0.001,3633.2,3632.9,5.75260586]
[1754034088846,0.001,3633.2,3633.1,3.0]
[1754034089223,1.0522,3633.2,3633.1,3.0]
[1754034089425,0.001,3633.2,3633.1,3.0]
[1754034089620,0.001,3633.2,3633.1,5.75247034]
[1754034089855,0.001,3633.2,3633.1,3.0]
[1754034090150,0.001,3633.2,3633.1,5.75247034]
[1754034090348,0.001,3633.2,3633.1,5.89007034]
[1754034090555,0.001,3633.2,3633.1,6.32317034]
[1754034090942,0.001,3633.2,3633.1,5.89007034]
[1754034092637,0.001,3633.2,3633.1,6.50787034]
[1754034093674,0.001,3633.2,3633.1,3.1376]
[1754034093820,0.001,3633.2,3633.1,3.0]
[1754034094124,1.0522,3633.2,3633.1,5.75247034]
[1754034094529,0.001,3633.2,3633.1,5.75247034]
[1754034094727,0.001,3633.2,3633.1,3.0]
[1754034095154,0.001,3633.2,3633.1,5.75247034]
[1754034096355,0.001,3633.2,3633.1,3.0]
[1754034096770,0.001,3633.2,3633.1,5.75247034]
[1754034097178,0.86598753,3633.2,3633.1,3.0]
[1754034097692,0.86598753,3633.2,3633.1,5.75247034]
[1754034097978,0.4433,3633.7,3633.1,3.0]
[1754034099242,1.0512,3633.6,3632.8,0.002]
[1754034099463,0.14945,3633.5,3632.8,0.002]
[1754034099869,1.0512,3633.4,3632.8,0.002]
[1754034100380,1.0512,3633.4,3633.0,3.0]
[1754034100676,1.0512,3633.3,3633.0,2.75253892]
[1754034100878,0.4433,3633.4,3633.0,3.0]
[1754034101075,0.001,3634.8,3632.8,0.002]
[1754034101380,1.0512,3633.3,3632.8,5.75466951]
[1754034101578,1.4945,3633.2,3632.8,0.002]
[1754034101781,1.4945,3633.2,3632.8,3.002]
[1754034101960,1.4945,3633.1,3632.8,0.002]
[1754034102281,1.4945,3633.1,3632.8,3.002]
[1754034102442,1.0512,3633.1,3633.0,2.7525461]
[1754034102989,1.0512,3633.1,3632.8,5.75462559]
[1754034103178,0.4433,3633.5,3633.0,3.0]
[1754034103480,0.4433,3633.5,3633.0,2.75253221]
[1754034103682,0.4433,3633.5,3632.8,0.002]
[1754034103683,0.001,3633.6,3633.2,3.0]
[1754034103886,0.001,3633.6,3632.8,0.02952697]
[1754034103887,0.001,3633.6,3633.5,3.0]
[1754034104182,0.001,3633.6,3633.5,5.75216733]
[1754034104391,1.0522,3633.6,3633.3,2.7523134]
[1754034104571,1.0522,3633.6,3632.8,0.002]
[1754034104572,1.4945,3633.5,3632.8,0.002]
[1754034104773,1.4945,3633.5,3633.1,3.0]
[1754034104981,1.0512,3633.5,3633.2,2.7523489]
[1754034105350,0.001,3633.6,3632.8,2.75469391]
[1754034105351,1.4945,3633.4,3632.8,2.75469391]
[1754034105592,1.4945,3633.4,3633.0,3.0]
[1754034105593,1.0512,3633.3,3633.0,3.0]
[1754034105898,1.6321,3633.2,3632.8,0.002]
[1754034106211,0.1376,3632.9,3632.8,0.002]
[1754034106506,1.1985,3632.9,3632.8,0.002]
[1754034107787,1.80178,3632.9,3632.8,0.002]
[1754034108765,1.1985,3632.9,3632.8,0.002]
[1754034109153,1.6376,3632.9,3632.8,0.002]
[1754034109571,1.1985,3632.9,3632.8,0.002]
[1754034110081,1.6376,3632.9,3632.8,0.002]
[1754034111616,4.66794235,3633.5,3632.8,0.002]
[1754034111617,0.4391,3633.3,3632.8,0.002]
[1754034111821,1.6376,3632.9,3632.8,0.002]
[1754034112101,0.1376,3632.9,3632.8,0.002]
[1754034112668,4.66794235,3633.5,3633.1,2.75240443]
[1754034112890,4.66794235,3633.5,3633.2,3.0]
[1754034113268,0.1376,3633.3,3633.2,2.75239458]
[1754034113472,0.1386,3633.6,3633.5,5.75216733]
[1754034113715,0.001,3633.6,3633.5,5.75216733]
[1754034113926,0.001,3633.6,3633.5,6.69276733]
[1754034115221,0.001,3633.6,3633.5,6.55516733]
[1754034115586,0.001,3633.6,3633.5,6.69276733]
[1754034116447,1e-08,3633.6,3633.5,21.10757279]
[1754034116597,0.1386,3634.8,3634.7,2.7512587]
[1754034116794,0.1386,3634.8,3634.7,5.7512587]
[1754034116996,0.001,3634.8,3634.7,5.7512587]
[1754034118613,0.001,3634.8,3634.7,6.1843587]
[1754034119198,0.001,3634.8,3634.7,6.6539587]
[1754034119406,1.0609,3636.4,3634.8,5.751183]
[1754034119645,1.0609,3636.4,3635.5,2.7506465]
[1754034119646,0.1376,3636.0,3635.5,2.7506465]
[1754034119842,0.1376,3636.0,3635.6,2.75057228]
[1754034120144,0.1376,3636.0,3635.5,0.24505052]
[1754034120368,1.0609,3635.9,3635.6,2.75056964]
[1754034120639,0.1376,3635.7,3635.4,3.11087689]
[1754034120843,1.5,3635.6,3635.2,0.1376]
[1754034121005,1.66376,3635.5,3635.2,0.1376]
[1754034121345,1.5,3635.4,3633.6,2.75202647]
[1754034121556,0.1376,3634.7,3633.8,2.88951994]
[1754034121845,0.1376,3634.3,3633.8,0.1376]
[1754034122048,1.5,3634.2,3633.7,2.88954762]
[1754034122232,0.1376,3634.3,3634.0,2.75173127]
[1754034122550,0.1376,3634.3,3633.9,3.0]
[1754034122551,0.1376,3634.4,3634.1,2.77922413]
[1754034122847,0.1376,3634.4,3633.9,0.1376]
[1754034122848,1.5,3635.1,3634.6,3.0]
[1754034123101,1.5,3635.1,3634.2,2.75161514]
[1754034123102,0.1376,3634.7,3634.4,3.0]
[1754034123216,1.23225172,3634.7,3634.2,3.1376]
[1754034123411,1.09465172,3634.7,3634.6,5.88893439]
[1754034123745,1.09465172,3634.7,3634.6,6.32203439]
[1754034125110,1.09565172,3634.7,3634.6,6.32203439]
[1754034125821,1.09565172,3634.7,3634.6,6.65403439]
[1754034126861,1.09565172,3634.7,3634.6,6.32203439]
[1754034127054,1.09565172,3634.7,3634.6,6.61098915]
[1754034127353,1.09565172,3634.7,3634.6,6.94298915]
[1754034127760,0.001,3635.1,3635.0,2.75103163]
[1754034127920,0.001,3635.1,3635.0,5.75103163]
[1754034128116,0.001,3635.1,3635.0,5.88863163]
[1754034128317,0.001,3635.1,3635.0,6.94319089]
[1754034129867,0.001,3635.1,3635.0,21.35799635]
[1754034130358,0.001,3635.1,3635.0,6.17809089]
[1754034131577,0.001,3635.1,3634.1,2.75171294]
[1754034131578,1.501,3635.1,3634.1,2.75171294]
[1754034131782,1.0609,3635.0,3634.8,2.88872745]
[1754034131982,1.5,3634.9,3634.5,2.75135565]
[1754034132290,0.001,3635.1,3634.1,0.1376]
[1754034132291,0.1376,3634.6,3634.1,0.1376]
[1754034132472,0.001,3635.1,3633.9,0.1376]
[1754034132473,0.1376,3634.4,3633.9,0.1376]
[1754034132683,1.5,3634.3,3633.9,0.1376]
[1754034132997,1.0609,3634.2,3634.1,5.75171294]
[1754034133149,0.1376,3634.4,3634.3,2.75156151]
[1754034133345,1.0609,3634.7,3634.2,3.0]
[1754034133547,0.1376,3634.7,3634.6,3.0]
[1754034133794,0.001,3635.1,3634.6,0.1376]
[1754034133996,1.0609,3634.7,3634.6,0.1376]
[1754034134464,1.0609,3634.7,3634.6,2.88893439]
[1754034135000,1.5,3634.7,3634.6,3.1376]
[1754034135200,1.5,3634.7,3634.6,0.1376]
[1754034135350,1.5,3634.7,3634.6,3.1376]
[1754034135694,1.5,3634.7,3634.5,3.0]
[1754034135866,1.0609,3634.7,3634.5,5.75135258]
[1754034136068,0.1376,3635.0,3634.7,3.0]
[1754034136293,0.1376,3635.0,3634.5,2.88898462]
[1754034136294,0.4391,3634.9,3634.5,0.1376]
[1754034136594,0.001,3635.1,3634.3,3.0]
[1754034136595,0.4438,3634.8,3634.3,3.0]
[1754034136801,1.634,3634.7,3634.3,3.0]
[1754034136999,1.4964,3634.6,3634.1,3.0]
[1754034137163,1.4964,3634.5,3634.1,3.0]
[1754034137362,0.1376,3634.2,3634.1,3.0]
[1754034137686,1.634,3634.2,3633.8,3.0]
[1754034137994,1.4964,3634.1,3633.9,0.02751864]
[1754034138198,1.0526,3634.0,3633.7,5.88959191]
[1754034138349,0.55,3635.0,3633.6,0.20873345]
[1754034138350,0.4438,3634.4,3633.6,0.20873345]